bitfinex-derivatives/quotes_SOLF0:USTF0_20240924
["timestamp","ask_amount","ask_price","bid_price","bid_amount"]
[1727188148210,3.4489,144.97,144.88,21.11]
[1727188148405,21.11,145.01,144.88,21.11]
[1727188149013,0.6632,145.03,144.93,21.11]
[1727188149305,0.6632,145.03,144.94,2.7672]
[1727188150002,21.11,145.01,144.88,21.11]
[1727188150204,21.11,145.01,144.89,1.361]
[1727188150602,0.6632,145.03,144.89,1.361]
[1727188150603,21.11,144.99,144.89,1.361]
[1727188150797,21.11,144.99,144.92,3.4498]
[1727188150798,3.4488,144.97,144.92,3.4498]
[1727188151014,21.11,144.99,144.89,1.361]
[1727188151197,21.11,144.99,144.9,3.52124596]
[1727188151401,21.11,145.02,144.89,1.361]
[1727188151603,21.11,144.99,144.89,1.361]
[1727188152010,21.11,145.02,144.9,3.43775997]
[1727188152609,3.4487,144.98,144.93,3.4496]
[1727188152816,21.11,145.02,144.93,3.4496]
[1727188153113,21.11,145.02,144.91,21.11]
[1727188153715,21.11,145.0,144.87,21.11]
[1727188153912,0.6632,145.03,144.89,21.11]
[1727188154117,21.11,145.02,144.89,24.60654472]
[1727188154504,3.4489,144.97,144.89,24.60654472]
[1727188154907,21.11,145.02,144.89,24.60654472]
[1727188155311,21.11,145.02,144.87,1.3534]
[1727188155312,21.11,145.0,144.87,22.4634]
[1727188155510,21.11,145.0,144.87,25.98616708]
[1727188156213,3.4494,144.95,144.87,25.98616708]
[1727188156619,3.4496,144.94,144.9,3.4503]
[1727188157113,21.11,145.0,144.87,25.98616708]
[1727188157317,21.11,145.0,144.91,3.4501]
[1727188157821,21.11,144.94,144.87,1.3534]
[1727188159608,3.50437725,144.98,144.87,1.3534]
[1727188159609,21.11,144.97,144.87,1.3534]
[1727188159808,21.11,144.95,144.87,1.3534]
[1727188160014,21.11,144.95,144.88,3.4507]
[1727188160219,21.11,144.95,144.87,1.3534]
[1727188161058,21.11,144.97,144.87,1.3534]
[1727188161226,21.11,145.01,144.9,21.11]
[1727188161524,21.11,145.01,144.91,3.48291335]
[1727188161724,21.11,145.01,144.9,21.11]
[1727188162132,3.4492,144.96,144.91,3.45]
[1727188162337,21.11,144.98,144.87,22.4634]
[1727188162540,21.11,144.96,144.87,1.3534]
[1727188163546,21.11,144.96,144.88,3.4508]
[1727188163845,24.68083203,145.03,144.87,1.3534]
[1727188163846,21.11,144.99,144.87,1.3534]
[1727188164040,3.4501,144.92,144.87,4.8045]
[1727188164248,21.11,144.94,144.83,3.51231351]
[1727188164541,21.11,144.94,144.83,2.749]
[1727188165140,0.6643,144.96,144.83,2.749]
[1727188165141,21.11,144.91,144.83,2.749]
[1727188165634,3.4508,144.89,144.85,3.4514]
[1727188165829,3.4508,144.89,144.83,2.749]
[1727188166043,21.11,144.91,144.83,2.749]
[1727188166240,21.11,144.91,144.8,1.329]
[1727188166447,0.6643,144.96,144.76,1.3024]
[1727188166448,21.11,144.86,144.76,1.3024]
[1727188166638,21.11,144.86,144.79,3.4529]
[1727188166639,3.4523,144.83,144.79,3.4529]
[1727188166836,21.11,144.86,144.79,3.4529]
[1727188167032,21.11,144.86,144.76,1.3024]
[1727188167236,3.4519,144.84,144.76,1.3024]
[1727188167646,21.11,144.86,144.76,1.3024]
[1727188167957,3.4523,144.83,144.79,3.4529]
[1727188168145,0.6643,144.89,144.76,1.3024]
[1727188168146,21.11,144.84,144.76,1.3024]
[1727188168841,3.4525,144.82,144.76,1.3024]
[1727188169353,21.11,144.84,144.76,1.3024]
[1727188169942,3.4524,144.82,144.76,1.3024]
[1727188170143,21.11,144.84,144.76,1.3024]
[1727188170454,21.11,144.82,144.72,2.749]
[1727188171349,21.11,144.84,144.73,21.11]
[1727188171748,21.11,144.86,144.73,21.11]
[1727188172047,21.11,144.84,144.73,21.11]
[1727188172547,0.6643,144.89,144.72,2.749]
[1727188172548,21.7743,144.89,144.79,21.11]
[1727188172754,21.7743,144.89,144.76,1.4077]
[1727188172948,3.4517,144.85,144.81,3.4525]
[1727188173247,21.7743,144.89,144.72,1.3627]
[1727188173248,0.6643,144.89,144.72,1.3627]
[1727188173454,3.4517,144.85,144.74,21.11]
[1727188173644,21.11,144.87,144.74,21.11]
[1727188174146,21.11,144.85,144.73,2.8522]
[1727188174560,3.452,144.84,144.74,21.11]
[1727188174860,21.7743,144.89,144.77,21.11]
[1727188175045,21.7743,144.89,144.82,3.4522]
[1727188175238,21.11,144.87,144.74,21.11]
[1727188175551,3.4517,144.85,144.81,3.4523]
[1727188175740,0.6643,144.89,144.72,3.40240872]
[1727188175939,0.6643,144.89,144.68,25.139]
[1727188175940,21.11,144.82,144.68,25.139]
[1727188176150,21.11,144.82,144.68,28.61737847]
[1727188176650,3.453,144.8,144.71,21.11]
[1727188176842,21.11,144.82,144.71,21.11]
[1727188177639,21.11,144.83,144.71,21.11]
[1727188178248,21.11,144.83,144.77,3.4534]
[1727188178456,21.11,144.85,144.76,3.44631094]
[1727188178654,21.11,144.85,144.77,2.8315]
[1727188178861,21.11,144.85,144.79,3.4529]
[1727188179149,21.11,144.85,144.77,2.8315]
[1727188179750,3.4526,144.81,144.77,6.285]
[1727188179956,21.11,144.85,144.77,2.8315]
[1727188180342,21.11,144.85,144.77,6.285]
[1727188180954,21.11,144.85,144.77,2.8315]
[1727188180955,3.4525,144.82,144.77,2.8315]
[1727188181546,21.11,144.83,144.77,1.4381]
[1727188181851,21.11,144.8,144.72,1.4029]
[1727188183659,21.11,144.8,144.68,3.47837847]
[1727188183856,21.11,144.8,144.7,4.1687]
[1727188184158,21.11,144.78,144.67,3.45332698]
[1727188184343,21.11,144.8,144.68,25.2787]
[1727188184543,3.4535,144.78,144.68,25.2787]
[1727188185255,3.4535,144.78,144.68,28.71095537]
[1727188185444,3.4531,144.79,144.68,28.71095537]
[1727188185646,3.4531,144.79,144.7,21.11]
[1727188186059,3.4533,144.78,144.74,3.4541]
[1727188186560,3.4534,144.78,144.7,21.11]
[1727188186766,3.4534,144.78,144.68,28.71095537]
[1727188186949,21.11,144.81,144.68,28.71095537]
[1727188187148,3.4532,144.79,144.68,28.71095537]
[1727188187349,21.11,144.81,144.68,28.71095537]
[1727188187754,3.4533,144.78,144.68,28.71095537]
[1727188188061,21.11,144.81,144.68,28.71095537]
[1727188188360,3.4535,144.78,144.74,3.4541]
[1727188189377,21.11,144.81,144.68,28.71095537]
[1727188189665,3.453,144.8,144.71,21.11]
[1727188189846,21.11,144.83,144.71,21.11]
[1727188190257,21.11,144.78,144.56,82.9]
[1727188190450,21.11,144.75,144.62,21.11]
[1727188190654,21.11,144.75,144.66,3.456]
[1727188190655,3.4554,144.7,144.66,3.456]
[1727188190854,21.11,144.73,144.62,21.11]
[1727188192756,21.11,144.73,144.61,21.11]
[1727188193262,3.4547,144.73,144.61,21.11]
[1727188193561,21.11,144.75,144.64,21.11]
[1727188193749,3.4549,144.72,144.64,21.11]
[1727188193948,21.11,144.75,144.64,21.11]
[1727188194863,3.4548,144.72,144.68,3.4556]
[1727188195059,3.4548,144.72,144.66,3.3778085]
[1727188195250,21.11,144.75,144.61,21.11]
[1727188195455,3.4543,144.74,144.7,3.455]
[1727188195655,21.11,144.75,144.69,3.47908517]
[1727188195853,21.11,144.75,144.64,21.11]
[1727188196758,21.11,144.78,144.66,21.11]
[1727188196958,21.11,144.78,144.67,4.1714]
[1727188197163,3.4539,144.76,144.73,3.4544]
[1727188197352,21.11,144.78,144.67,4.1714]
[1727188197756,3.4539,144.76,144.67,4.1714]
[1727188198265,3.4537,144.77,144.67,4.1714]
[1727188198967,3.4537,144.77,144.73,3.4543]
[1727188199668,24.5633,144.78,144.67,4.1714]
[1727188200252,24.5633,144.78,144.75,3.454]
[1727188200459,21.11,144.81,144.69,21.11]
[1727188200764,21.11,144.81,144.75,3.4538]
[1727188200963,21.11,144.81,144.74,3.40037321]
[1727188201170,21.11,144.81,144.69,21.11]
[1727188201568,24.5628,144.81,144.69,21.11]
[1727188201768,0.6701,144.89,144.67,25.2814]
[1727188202067,21.11,144.87,144.75,21.11]
[1727188202267,21.11,144.82,144.76,1.4149]
[1727188202764,21.11,144.87,144.76,4.92681709]
[1727188202967,21.11,144.87,144.77,23.8287]
[1727188203168,0.6701,144.96,144.82,21.11]
[1727188203371,21.11,144.99,144.87,21.11]
[1727188203560,21.11,144.99,144.88,4.1189]
[1727188204063,21.11,144.99,144.88,25.2289]
[1727188204268,4.08115354,145.05,144.88,25.2289]
[1727188204269,21.11,145.01,144.88,25.2289]
[1727188204775,21.11,145.01,144.9,21.11]
[1727188204961,6.8887,145.16,144.93,21.11]
[1727188205166,3.4476,145.02,144.93,21.11]
[1727188205363,21.11,145.05,144.93,21.11]
[1727188205562,21.11,145.0,144.9,3.49291882]
[1727188205865,0.6701,145.1,144.98,3.4483]
[1727188206066,21.11,145.05,144.93,21.11]
[1727188206470,21.11,145.05,144.97,3.4486]
[1727188206672,3.4474,145.03,144.93,21.11]
[1727188206876,21.11,145.05,144.93,21.11]
[1727188207175,21.11,145.05,144.97,3.4486]
[1727188207467,21.11,145.08,144.98,3.42555778]
[1727188207673,21.11,145.08,144.98,3.4484]
[1727188207867,21.11,145.08,144.98,3.51524109]
[1727188208070,0.6701,145.1,144.97,22.5373]
[1727188208270,0.6701,145.1,144.97,26.04564238]
[1727188208967,21.11,145.12,144.97,26.04564238]
[1727188209359,21.11,145.12,145.02,21.11]
[1727188210473,21.11,145.1,144.99,21.11]
[1727188210672,21.11,145.07,144.97,4.93564238]
[1727188210873,3.4481,145.0,144.97,3.50834238]
[1727188211171,21.11,145.07,144.97,3.50834238]
[1727188211364,21.11,145.07,144.96,2.7249]
[1727188211669,3.4473,145.04,144.99,3.4481]
[1727188211863,3.4473,145.04,144.96,27.20756214]
[1727188212060,3.4473,145.04,144.96,23.8349]
[1727188212260,3.4473,145.04,144.99,3.4482]
[1727188212466,3.4473,145.04,144.96,27.27481535]
[1727188212770,0.6669,145.14,145.02,21.11]
[1727188213276,21.11,145.13,145.02,21.11]
[1727188213977,0.6669,145.14,145.04,21.11]
[1727188214178,21.11,145.15,145.05,1.4166]
[1727188214472,21.11,145.14,145.0,21.11]
[1727188214777,3.446,145.09,145.03,1.4166]
[1727188214973,21.11,145.14,145.04,3.50158057]
[1727188215176,21.11,145.16,145.04,21.11]
[1727188215382,0.6649,145.18,145.06,21.11]
[1727188215572,3.4451,145.13,145.06,21.11]
[1727188215766,0.6649,145.18,145.06,21.11]
[1727188216082,0.6649,145.18,145.05,22.5229]
[1727188216280,21.7749,145.18,145.05,22.5229]
[1727188216481,21.7749,145.18,145.03,1.4166]
[1727188216482,21.11,145.13,145.03,1.4166]
[1727188216773,21.7749,145.18,145.03,1.4166]
[1727188216774,21.11,145.1,145.03,1.4166]
[1727188217373,21.11,145.1,145.01,8.16708506]
[1727188217571,21.11,145.1,145.01,4.71938506]
[1727188217775,21.11,145.1,145.01,1.3526]
[1727188217974,0.6649,145.18,145.01,1.3526]
[1727188218175,21.11,145.14,145.02,21.11]
[1727188218372,3.4458,145.1,145.02,24.61551724]
[1727188218570,21.11,145.14,145.02,24.61551724]
[1727188218782,21.11,145.16,145.04,21.11]
[1727188219077,21.11,145.16,145.05,1.3442]
[1727188219279,21.11,145.16,145.05,4.78626896]
[1727188219577,0.6649,145.18,145.06,22.4799]
[1727188219777,0.6649,145.18,145.09,3.4459]
[1727188220080,21.11,145.16,145.06,1.3699]
[1727188220273,21.11,145.13,145.06,1.3699]
[1727188220679,21.11,145.16,145.06,1.3699]
[1727188220971,21.11,145.16,145.09,3.4459]
[1727188221172,21.7749,145.18,145.09,3.4459]
[1727188221478,21.11,145.16,145.07,3.4462]
[1727188221678,21.11,145.12,145.0,21.11]
[1727188221872,21.11,145.12,145.03,3.4473]
[1727188222173,21.11,145.12,145.02,3.36791672]
[1727188222174,3.4469,145.06,145.01,2.7225]
[1727188222378,21.11,145.1,145.01,6.24621432]
[1727188222770,3.4466,145.07,145.01,6.24621432]
[1727188222972,3.4466,145.07,145.03,3.4472]
[1727188223275,3.4458,145.1,145.02,21.11]
[1727188223469,21.11,145.14,145.02,21.11]
[1727188223673,21.11,145.14,145.04,3.447]
[1727188224076,21.11,145.14,145.05,3.4468]
[1727188224278,21.11,145.14,145.02,21.11]
[1727188224583,3.4461,145.09,145.05,3.4467]
[1727188224780,21.11,145.14,145.01,2.7225]
[1727188225079,3.4463,145.08,145.01,6.11203827]
[1727188225281,21.11,145.14,145.01,2.7225]
[1727188225581,3.446,145.09,145.01,2.7225]
[1727188225978,21.11,145.16,145.02,21.11]
[1727188226479,3.4457,145.1,145.06,3.4465]
[1727188226680,3.4457,145.1,145.02,21.11]
[1727188226880,21.11,145.13,145.01,6.17547145]
[1727188227282,21.11,145.11,145.01,6.17547145]
[1727188228276,3.4466,145.07,145.03,3.4473]
[1727188228475,21.11,145.11,145.03,3.4473]
[1727188229277,21.11,145.13,145.01,6.17547145]
[1727188229478,21.11,145.13,145.02,21.11]
[1727188230078,0.6649,145.18,145.05,21.11]
[1727188230079,21.7749,145.18,145.05,21.11]
[1727188230286,21.7749,145.18,145.07,21.11]
[1727188230877,21.7749,145.18,145.1,3.4455]
[1727188231379,21.11,145.2,145.1,21.11]
[1727188231782,0.6652,145.21,145.1,21.11]
[1727188232176,0.6652,145.21,145.12,3.445]
[1727188232497,20.69,145.35,145.15,21.11]
[1727188232671,0.6652,145.29,145.19,3.4435]
[1727188232877,0.6652,145.29,145.18,3.49130945]
[1727188233184,0.6652,145.29,145.17,21.11]
[1727188233382,21.11,145.32,145.2,21.11]
[1727188233677,3.4417,145.27,145.17,3.51026523]
[1727188233884,3.4417,145.27,145.19,21.11]
[1727188234086,21.11,145.32,145.19,21.11]
[1727188234387,34.37,145.32,145.19,34.37]
[1727188235082,34.37,145.35,145.19,34.37]
[1727188235083,34.37,145.29,145.19,3.50619834]
[1727188235282,3.4421,145.25,145.19,3.50619834]
[1727188235480,3.4421,145.25,145.18,4.2027]
[1727188235781,34.37,145.29,145.21,3.443]
[1727188235980,34.37,145.29,145.18,4.2027]
[1727188235981,34.37,145.31,145.19,34.37]
[1727188236375,3.4419,145.26,145.19,34.37]
[1727188236688,34.37,145.31,145.19,34.37]
[1727188236889,3.4415,145.28,145.23,3.4424]
[1727188237083,3.4415,145.28,145.22,34.37]
[1727188237084,34.37,145.34,145.22,34.37]
[1727188237691,34.37,145.4,145.26,34.37]
[1727188237880,34.37,145.4,145.27,34.37]
[1727188238386,34.37,145.37,145.24,34.37]
[1727188239084,34.37,145.35,145.21,34.37]
[1727188239278,37.7959659,145.42,145.21,34.37]
[1727188239279,6.8763,145.42,145.21,34.37]
[1727188239482,34.37,145.35,145.22,3.4676284]
[1727188239680,34.37,145.35,145.21,34.37]
[1727188239888,34.37,145.35,145.25,3.442]
[1727188240189,34.37,145.35,145.21,34.37]
[1727188240379,34.37,145.35,145.25,3.442]
[1727188240579,34.37,145.35,145.21,34.37]
[1727188240784,34.37,145.35,145.21,37.84152114]
[1727188240984,34.37,145.35,145.25,3.4419]
[1727188241181,34.37,145.35,145.21,37.84152114]
[1727188241582,34.37,145.35,145.21,34.37]
[1727188241991,34.37,145.35,145.22,3.49699893]
[1727188242190,34.37,145.35,145.24,3.4422]
[1727188242391,34.37,145.35,145.21,34.37]
[1727188242894,34.37,145.35,145.21,37.82637218]
[1727188243282,34.37,145.32,145.22,1.26505586]
[1727188243487,34.37,145.35,145.21,37.82637218]
[1727188243690,34.37,145.33,145.19,34.37]
[1727188243889,34.37,145.28,145.2,1.26525926]
[1727188244091,3.4426,145.24,145.19,3.4434]
[1727188244288,34.37,145.28,145.18,86.8827]
[1727188244594,34.37,145.35,145.18,86.8827]
[1727188244595,34.37,145.3,145.18,86.8827]
[1727188244798,3.4418,145.27,145.18,86.8827]
[1727188245298,35.0303,145.32,145.19,34.37]
[1727188245594,35.0303,145.32,145.18,86.8827]
[1727188245595,34.37,145.3,145.18,86.8827]
[1727188245789,3.4449034,145.42,145.22,34.37]
[1727188246097,34.37,145.36,145.22,34.37]
[1727188246391,34.37,145.34,145.22,34.37]
[1727188246589,34.37,145.34,145.2,34.37]
[1727188246590,34.37,145.31,145.2,34.37]
[1727188246893,3.442,145.26,145.22,3.4427]
[1727188247197,34.37,145.31,145.2,34.37]
[1727188247785,34.37,145.29,145.18,86.8827]
[1727188248091,34.37,145.34,145.14,34.37]
[1727188248092,34.37,145.27,145.14,34.37]
[1727188248297,0.662,145.26,145.14,34.37]
[1727188248501,34.37,145.25,145.14,34.37]
[1727188248808,34.37,145.25,145.13,1.307]
[1727188249092,34.37,145.25,145.18,3.4437]
[1727188249291,34.37,145.25,145.13,1.307]
[1727188249607,3.4435,145.2,145.13,1.307]
[1727188249896,34.37,145.25,145.13,1.307]
[1727188250198,34.37,145.22,145.11,1.4352]
[1727188250584,3.4442,145.17,145.12,3.4451]
[1727188250998,34.37,145.22,145.12,34.37]
[1727188251296,0.662,145.26,145.16,34.37]
[1727188251490,34.37,145.23,145.11,35.8052]
[1727188251793,0.662,145.26,145.1,1.3742]
[1727188251998,34.37,145.22,145.09,35.6985]
[1727188252197,34.37,145.22,145.1,3.4457]
[1727188252496,34.37,145.22,145.09,35.6985]
[1727188252692,34.37,145.17,145.06,37.1505]
[1727188253092,0.661,145.16,145.06,37.1505]
[1727188253390,3.4457,145.1,145.03,35.6928]
[1727188253591,0.661,145.16,145.03,35.6928]
[1727188253992,0.661,145.16,145.06,34.37]
[1727188254387,3.4453,145.12,145.07,3.4462]
[1727188254585,0.661,145.16,145.06,21.19]
[1727188254994,0.661,145.16,145.07,3.4464]
[1727188255296,0.661,145.16,145.06,21.19]
[1727188255496,101.97307478,145.21,145.1,21.19]
[1727188255802,0.6604,145.2,145.1,21.19]
[1727188256093,80.78307478,145.21,145.13,21.19]
[1727188256392,3.4442,145.17,145.12,3.4451]
[1727188256594,80.78307478,145.21,145.13,21.19]
[1727188256901,3.4435,145.2,145.15,3.4443]
[1727188257198,80.78307478,145.21,145.15,3.4443]
[1727188257584,80.78307478,145.21,145.13,21.19]
[1727188258391,21.19,145.2,145.06,1.4438]
[1727188258595,21.19,145.17,145.06,1.4438]
[1727188258798,0.6604,145.16,145.06,1.4438]
[1727188259395,0.6604,145.16,145.07,3.4463]
[1727188259596,0.6604,145.16,145.03,1.4247]
[1727188259597,21.19,145.15,145.03,1.4247]
[1727188259901,3.4458,145.1,145.05,3.4468]
[1727188260690,3.4458,145.1,145.06,3.4465]
[1727188260895,3.4447,145.14,145.05,34.41]
[1727188261199,0.6604,145.16,145.05,34.41]
[1727188261403,3.445,145.13,145.09,3.4459]
[1727188261607,0.6604,145.16,145.05,34.41]
[1727188262797,34.41,145.14,145.03,34.41]
[1727188263197,3.4463,145.08,145.03,37.8571]
[1727188263395,34.41,145.11,145.01,2.8549]
[1727188263608,34.41,145.09,144.96,34.41]
[1727188263807,0.6611,145.08,144.99,3.4483]
[1727188264197,3.4479,145.01,144.97,3.4487]
[1727188264502,4.10958976,145.08,144.94,38.5274]
[1727188264503,34.41,145.07,144.94,38.5274]
[1727188264705,34.41,145.04,144.94,38.5274]
[1727188265007,34.41,145.04,144.95,3.4492]
[1727188265305,34.41,145.04,144.94,4.1174]
[1727188265503,34.41,145.02,144.9,2.7812]
[1727188265802,34.41,145.02,144.9,4.2051]
[1727188266495,34.41,145.02,144.91,34.41]
[1727188267005,34.41,145.04,144.94,34.41]
[1727188267299,34.41,145.07,144.94,34.41]
[1727188267500,0.6611,145.08,144.96,34.41]
[1727188267701,0.6611,145.08,144.99,34.41]
[1727188267909,0.6611,145.08,144.95,34.41]
[1727188268807,0.6611,145.08,144.97,34.41]
[1727188269400,0.6611,145.08,144.98,1.3179]
[1727188269596,3.4464,145.07,145.03,3.4472]
[1727188270311,82.74,145.17,145.03,34.41]
[1727188270501,0.6645,145.14,145.03,34.41]
[1727188271204,35.0745,145.14,145.03,34.41]
[1727188272111,117.15,145.17,145.05,34.41]
[1727188272308,117.15,145.17,145.06,4.1354]
[1727188272610,34.41,145.15,145.06,4.1354]
[1727188272908,34.41,145.15,145.06,1.3776]
[1727188273114,34.41,145.15,145.07,3.4464]
[1727188273502,34.41,145.17,145.06,35.7876]
[1727188273906,34.41,145.17,145.09,3.4458]
[1727188274101,34.41,145.17,145.06,35.7876]
[1727188274309,34.41,145.17,145.09,3.4457]
[1727188274506,0.6645,145.18,145.06,35.7876]
[1727188275216,34.41,145.16,145.06,35.7876]
[1727188275409,34.41,145.16,145.08,3.446]
[1727188275807,34.41,145.16,145.06,35.7876]
[1727188276010,34.41,145.14,145.06,1.3776]
[1727188276711,34.41,145.16,145.06,1.3776]
[1727188277623,34.41,145.14,145.06,1.3776]
[1727188277814,34.41,145.16,145.06,1.3776]
[1727188278213,0.6645,145.18,145.08,34.41]
[1727188278418,0.6645,145.18,145.11,3.4454]
[1727188278623,0.6645,145.18,145.08,34.41]
[1727188279111,0.6645,145.18,145.1,3.4456]
[1727188279310,0.6645,145.18,145.08,34.41]
[1727188279512,84.2977181,145.21,145.08,34.41]
[1727188279723,0.6624,145.2,145.08,34.41]
[1727188280216,80.78307478,145.21,145.06,1.3776]
[1727188280217,80.78307478,145.21,145.1,34.41]
[1727188280521,80.78307478,145.21,145.13,34.41]
[1727188280818,80.78307478,145.21,145.14,1.33]
[1727188281020,34.41,145.27,145.15,34.41]
[1727188282509,34.41,145.27,145.18,3.4437]
[1727188283321,34.41,145.27,145.15,34.41]
[1727188284318,34.41,145.25,145.14,2.6768]
[1727188284623,34.41,145.25,145.14,6.1214]
[1727188284820,20.69,145.31,145.17,34.41]
[1727188285022,67.0,145.53,145.22,34.41]
[1727188285023,3.43758611,145.35,145.22,34.41]
[1727188285212,34.41,145.3,145.23,2.6511]
[1727188285414,34.41,145.3,145.23,1.3193]
[1727188285624,3.41623036,145.32,145.23,1.3193]
[1727188285814,4.17576456,145.41,145.23,1.3193]
[1727188285815,34.41,145.31,145.23,1.3193]
[1727188286015,3.4419,145.27,145.23,1.3193]
[1727188286314,0.6616,145.31,145.23,1.3193]
[1727188286515,35.0716,145.31,145.23,1.3193]
[1727188287023,35.0716,145.31,145.18,35.7815]
[1727188287222,35.0716,145.31,145.19,1.3852]
[1727188287425,34.41,145.29,145.19,1.3852]
[1727188287920,3.4421,145.25,145.19,4.8287]
[1727188288219,34.41,145.29,145.19,1.3852]
[1727188288409,35.0716,145.31,145.2,34.41]
[1727188288619,0.6616,145.31,145.2,34.41]
[1727188289117,34.41,145.33,145.22,34.41]
[1727188289715,34.41,145.33,145.23,3.4424]
[1727188289716,3.4414,145.29,145.23,3.4424]
[1727188289918,3.4414,145.29,145.22,34.41]
[1727188290427,224.0,145.45,145.25,34.41]
[1727188290626,34.41,145.37,145.26,1.3527]
[1727188290932,0.6616,145.4,145.27,34.41]
[1727188290933,35.0716,145.4,145.27,34.41]
[1727188291121,35.0716,145.4,145.27,37.153]
[1727188291319,3.4396,145.36,145.3,3.4407]
[1727188291528,0.6616,145.4,145.27,37.153]
[1727188291730,34.41,145.38,145.27,37.153]
[1727188292030,35.0716,145.4,145.28,3.48478159]
[1727188292232,35.0716,145.4,145.27,37.153]
[1727188292233,34.41,145.4,145.29,34.41]
[1727188292624,3.4397,145.36,145.3,3.4409]
[1727188292933,34.41,145.4,145.29,34.41]
[1727188293327,34.41,145.4,145.27,37.153]
[1727188294128,34.41,145.4,145.29,34.41]
[1727188294829,34.41,145.4,145.27,37.153]
[1727188295033,3.46569555,145.47,145.31,34.41]
[1727188295228,3.4388,145.4,145.34,3.4398]
[1727188295623,34.41,145.44,145.31,34.41]
[1727188295829,34.41,145.44,145.29,34.41]
[1727188295830,34.41,145.4,145.29,34.41]
[1727188296032,34.41,145.42,145.29,34.41]
[1727188296228,3.4388,145.4,145.33,3.4402]
[1727188296434,34.41,145.44,145.31,34.41]
[1727188297025,0.6614,145.46,145.34,34.41]
[1727188297333,0.6614,145.46,145.35,4.1226]
[1727188297540,3.4377,145.44,145.37,3.4393]
[1727188297726,0.6614,145.46,145.36,34.41]
[1727188298035,3.458362,145.48,145.38,3.439]
[1727188298235,34.41,145.49,145.35,4.1226]
[1727188298236,0.6614,145.49,145.35,4.1226]
[1727188298438,34.41,145.44,145.35,4.1226]
[1727188299739,34.41,145.44,145.31,34.41]
[1727188300033,3.4386,145.4,145.33,3.44]
[1727188300230,34.41,145.44,145.31,34.41]
[1727188300431,34.41,145.44,145.33,34.41]
[1727188300645,34.41,145.44,145.31,34.41]
[1727188300823,34.41,145.44,145.31,35.7409]
[1727188301550,34.41,145.44,145.34,3.4398]
[1727188301841,34.41,145.44,145.31,35.7409]
[1727188302036,3.4013348,145.45,145.31,35.7409]
[1727188302229,34.41,145.42,145.31,35.7409]
[1727188302635,0.6614,145.49,145.31,1.3309]
[1727188302636,21.15,145.43,145.31,1.3309]
[1727188302832,21.15,145.43,145.32,3.4403]
[1727188303036,0.6584,145.42,145.32,3.4403]
[1727188303235,0.6584,145.42,145.33,21.15]
[1727188303436,3.4385,145.41,145.34,3.44]